Cogmind - Beta 13 @@@ ROGUE MODE // 2024.04.15 @ 20:47:22 Player: Demo Result: Destroyed by P-80 Master with Gamma Rifle Performance ------------- Evolutions (8) 4000 Regions Visited (21) 4200 Robots Destroyed (135) 675 Value Destroyed (6430) 6430 Prototype IDs (41) 820 Alien Tech Used (0) 0 Bonus (4005) 4005 TOTAL SCORE: 20130 Bonus ------- High Alert Combat Kills 194 Follower Combat Kills 272 Entered Garrisons 800 Used RIF Installer 2000 Entered DSFs 500 Aligned with FarCom 300 Friendly Fire -61 Cogmind --------- Core Integrity 0/1450 Matter 127/300 Energy 1211/1600 System Corruption 14% Temperature Cool (4) Movement Core (100) Ox1 Location -2/Research Parts ------- > --- POWER (2) -------- (None) > --- PROPULSION (4) --- Centrium Leg > --- UTILITY (14) ----- Superbattery Advanced System Shield Relay Coupler [Hunter] (2) > --- WEAPON (3) ------- (None) > --- INVENTORY (5) ---- Matter Compressor (0) Relay Coupler [NC] (35) Peak State ------------ > --- POWER ------------ Light Quantum Reactor > --- PROPULSION ------- Myomer Leg Myomer Leg Myomer Leg Centrium Leg > --- UTILITY ---------- Advanced Cryofiber Web Advanced Heat Sink Large Storage Unit Quantum Capacitor Advanced Force Field Hacking Suite Advanced System Shield Relay Coupler [NC] Relay Coupler [NC] Relay Coupler [Grunt] Relay Coupler [Grunt] Relay Coupler [Sentry] Relay Coupler [Hunter] > --- WEAPON ----------- Enhanced Quantum Rifle Hardcell Cannon Advanced Remote Datajack > --- INVENTORY -------- Myomer Leg Myomer Leg Centrium Leg Improved Gyrokinetic Inverter Improved Gyrokinetic Inverter Improved Gyrokinetic Inverter Improved Gyrokinetic Inverter Improved Gyrokinetic Inverter Improved Linear Gravjet Superbattery Matter Compressor Matter Compressor Relay Coupler [NC] Advanced Remote Datajack [Rating: 133] Favorites ----------- Power Light Quantum Reactor Engine F-cell Engine Power Core Nuclear Core Reactor Light Quantum Reactor Propulsion Wheel Treads Light Treads Leg Myomer Leg Wheel Wheel Hover Unit Gyrokinetic Inverter Flight Unit Nuclear Pulse Thruster Utility Relay Coupler [Grunt] Device Improved Heat Sink Storage Large Storage Unit Processor Advanced Salvage Targeting Computer Hackware Relay Coupler [Grunt] Protection Layered Medium Armor Plating Weapon Heavy Particle Gun Energy Gun Heavy Particle Gun Energy Cannon Heavy Plasma Cannon Ballistic Gun Coil Gun Ballistic Cannon Enhanced Gauss Cannon Launcher Advanced EMP Blaster Special Weapon Remote Datajack Impact Weapon Heavy Flail Slashing Weapon Axe Build | -11 -10 -10 -10 -9 -8 -8 -8 -8 -7 -7 -6 -6 -6 -5 -5 -5 -4 -4 -3 -3 -2 ------- Run | Yrd Mat Min Exi Min Mat Gar Mat Gar Fac Gar Fac Low Low Fac Upp Upp Fac Gar Res DSF Res Slots Evolved 16 | . . . . . 4 . . . 2 . 2 . . 2 . . 2 . 2 . 2 Power 1 | . . . . . 1 . . . . . . . . . . . . . . . . Propulsion 2 | . . . . . . . . . . . 1 . . . . . 1 . . . . Utility 12 | . . . . . 2 . . . 2 . 1 . . 2 . . 1 . 2 . 2 Weapon 1 | . . . . . 1 . . . . . . . . . . . . . . . . Parts Attached 228 | 6 2 . . 4 29 3 12 12 8 30 4 2 . 37 18 7 18 12 6 3 15 Power 18 | . . . . 1 4 . . 1 1 3 . . . 1 2 . 2 3 . . . Engine 8 | . . . . 1 2 . . 1 1 . . . . 1 1 . 1 . . . . Core 4 | . . . . . 2 . . . . . . . . . 1 . 1 . . . . Reactor 6 | . . . . . . . . . . 3 . . . . . . . 3 . . . Propulsion 53 | 2 1 . . . 5 . 3 1 1 3 2 . . 8 3 . 9 5 . . 10 Treads 4 | 1 . . . . . . 1 1 . . . . . . 1 . . . . . . Leg 15 | . . . . . . . . . . 1 . . . 2 1 . 4 5 . . 2 Wheel 19 | 1 1 . . . 4 . 2 . 1 2 1 . . 5 1 . 1 . . . . Hover 13 | . . . . . . . . . . . . . . 1 . . 4 . . . 8 Flight 2 | . . . . . 1 . . . . . 1 . . . . . . . . . . Utility 68 | 2 1 . . . 6 . 3 5 2 13 2 . . 7 4 6 4 2 6 2 3 Device 32 | 1 . . . . 3 . 2 2 1 3 2 . . 4 3 . 4 1 3 1 2 Storage 8 | 1 1 . . . 1 . . . . . . . . . 1 . . . 2 1 1 Processor 5 | . . . . . . . . 1 1 1 . . . 2 . . . . . . . Hackware 14 | . . . . . . . . 2 . 4 . . . 1 . 5 . 1 1 . . Protection 9 | . . . . . 2 . 1 . . 5 . . . . . 1 . . . . . Artifact . | . . . . . . . . . . . . . . . . . . . . . . Weapon 89 | 2 . . . 3 14 3 6 5 4 11 . 2 . 21 9 1 3 2 . 1 2 Energy Gun 17 | 1 . . . . 6 . 3 . 3 1 . . . . 1 . . 2 . . . Energy Cannon 4 | . . . . . . . . . . . . . . 2 2 . . . . . . Ballistic Gun 20 | 1 . . . 1 3 . 1 1 . 5 . 1 . 6 1 . . . . . . Ballistic Cannon 5 | . . . . . . . . . . . . . . 4 . . . . . . 1 Launcher 14 | . . . . 1 4 . 1 2 . . . . . 3 3 . . . . . . Special Weapon 16 | . . . . 1 . 1 1 1 1 . . 1 . 5 2 . 1 . . 1 1 Impact Weapon 12 | . . . . . . 2 . 1 . 5 . . . 1 . 1 2 . . . . Slashing Weapon 1 | . . . . . 1 . . . . . . . . . . . . . . . . Piercing Weapon . | . . . . . . . . . . . . . . . . . . . . . . Special Melee Weapon . | . . . . . . . . . . . . . . . . . . . . . . Unidentified Prototypes 15 | . . . . . 5 . 2 . 1 1 . . . 5 . . . . 1 . . Parts Lost 60 | . 1 . . . 4 . 3 3 1 2 . . . 8 11 3 . . 1 2 21 Power 9 | . . . . . 1 . . 2 1 . . . . 1 2 . . . . 1 1 Propulsion 23 | . 1 . . . 2 . 2 1 . 1 . . . 3 5 1 . . . . 7 Utility 18 | . . . . . . . 1 . . 1 . . . 3 1 2 . . 1 . 9 Weapon 10 | . . . . . 1 . . . . . . . . 1 3 . . . . 1 4 Highest Loss Streak 21 | . 1 . . . 2 . 2 2 1 1 . . . 3 7 3 . . 1 2 21 To Critical Strikes . | . . . . . . . . . . . . . . . . . . . . . . Average Slot Usage (%) 90 | . 84 85 85 98 94 100 99 90 86 99 99 100 100 88 80 64 81 97 97 92 82 Engine 3 | . . . . 12 8 9 9 4 9 . . . . 2 5 3 . 2 . . . Core 2 | . . . . . 8 9 9 5 . . . . . . 1 3 2 2 . . . Reactor 4 | . . . . . . . . . . 14 13 13 13 7 2 . . 4 9 5 3 Treads 2 | . 14 14 14 14 2 . . 6 3 . . . . . 2 . . . . . . Leg 3 | . . . . . . . . . . . . . . 1 1 1 2 18 19 19 14 Wheel 9 | . 13 14 14 14 14 18 17 11 11 14 14 20 20 14 3 . 2 . . . . Device 11 | . 14 14 14 14 19 18 18 13 10 3 5 6 6 10 14 3 6 10 9 13 14 Storage 6 | . 14 14 14 14 9 9 9 9 7 7 6 6 6 5 7 6 . . 2 4 4 Processor 2 | . . . . . . . . . 3 7 6 6 6 1 5 5 3 . . . . Hackware 18 | . . . . . . . . 7 15 21 20 20 20 17 17 26 42 42 41 38 32 Protection 2 | . . . . . 5 9 8 5 . 4 6 6 6 5 . . . . . . . Energy Gun 8 | . 14 14 14 14 20 9 15 18 15 15 13 13 13 2 . 3 . 1 9 5 3 Energy Cannon 1 | . . . . . . . . . . . . . . 2 5 3 . . . . . Ballistic Gun 3 | . 14 14 14 2 1 9 7 . . 2 6 5 6 2 1 3 . . . . . Launcher 1 | . . . . 8 3 . 1 6 2 . . . . . . . . . . . . Special Weapon 2 | . . . . 3 . 2 2 . 4 . . . . 2 2 . 4 5 4 4 3 Impact Weapon 1 | . . . . . . 6 . 1 . 4 . . . . . 1 5 8 . . . Naked Turns . | . . . . . . . . . . . . . . . . . . . . . . Heaviest Build 104 | 9 24 24 24 32 55 56 60 52 41 73 73 73 73 101 104 67 40 59 62 70 78 Greatest Support 105 | 10 10 10 10 10 20 20 20 22 26 32 42 42 42 42 32 15 100 105 105 105 105 Greatest Overweight (x) 16 | . 2 2 2 3 4 2 5 4 4 4 2 1 1 6 16 4 . 1 . . 1 Average Overweight (x) 2 | . 1 2 2 2 2 2 2 3 1 1 1 1 1 2 6 . . . . . . Largest Inventory Capacity 15 | 8 15 15 15 15 15 15 15 15 15 15 15 15 15 15 15 15 5 5 5 15 15 Average Capacity 13 | 5 14 15 15 15 15 15 15 15 15 15 15 15 15 15 15 10 5 5 5 12 14 Most Carried 15 | 1 2 8 15 15 15 15 15 15 15 15 15 15 15 15 15 15 5 5 5 15 15 Average Carried 12 | . . 3 9 13 14 14 14 14 14 14 14 14 15 14 13 10 4 4 4 9 13 Final Capacity 15 | 8 15 15 15 15 15 15 15 15 15 15 15 15 15 15 15 5 5 5 5 15 5 Final Carried 15 | 1 . 8 10 15 14 15 12 15 15 15 14 15 15 15 15 5 5 5 5 15 2 Class Distribution -------------------- 28% | Bothacker-Skirmisher 22% | Bothacker-Mutant 13% | Bothacker-Gunner 11% | Mutant 10% | Scavenger-Skirmisher 5% | Botlord-Skirmisher 4% | Scavenger-Mutant Dominant Class ---------------- Mutant | -10/Materials Mutant | -10/Mines Mutant | -10/Exiles Mutant | -9/Mines Scavenger-Skirmisher | -8/Materials Scavenger-Mutant | -8/Garrison Scavenger-Skirmisher | -8/Materials Bothacker-Skirmisher | -8/Garrison Bothacker-Skirmisher | -7/Factory Bothacker-Mutant | -7/Garrison Bothacker-Skirmisher | -6/Factory Bothacker-Gunner | -6/Lower Caves Bothacker-Gunner | -6/Lower Caves Bothacker-Skirmisher | -5/Factory Bothacker-Gunner | -5/Upper Caves Bothacker-Gunner | -5/Upper Caves Bothacker-Mutant | -4/Factory Bothacker-Mutant | -4/Garrison Botlord-Skirmisher | -3/Research Bothacker-Mutant | -3/DSF Bothacker-Skirmisher | -2/Research Resources | -11 -10 -10 -10 -9 -8 -8 -8 -8 -7 -7 -6 -6 -6 -5 -5 -5 -4 -4 -3 -3 -2 ----------- Run | Yrd Mat Min Exi Min Mat Gar Mat Gar Fac Gar Fac Low Low Fac Upp Upp Fac Gar Res DSF Res Matter Collected 3756 | 125 60 110 . 71 434 94 275 206 189 408 88 8 23 376 528 120 . 145 374 . 122 Remotely . | . . . . . . . . . . . . . . . . . . . . . . Salvage Created 6551 | 28 120 166 . 25 1018 . 1147 694 268 904 242 . 61 396 852 120 . 130 239 . 141 Parts 304 | 4 10 12 . 6 54 . 59 32 6 22 6 . 4 28 34 9 . 2 8 . 8 Haulers Intercepted 5 | . . . . . 3 . 1 . . . 1 . . . . . . . . . . Recyclers Shooed 2 | . 1 . . . . . . . . . 1 . . . . . . . . . . Parts Field Recycled 9 | . . . . . . . . . . . . . . 9 . . . . . . . Retrieved Matter 91 | . . . . . . . . . . . . . . 91 . . . . . . . Parts Self-Destructed 25 | . . . . . . . . . . . . 2 3 . 11 9 . . . . . Prevented 7 | . . . . . . . . . . . . 1 1 . 5 . . . . . . Kills | -11 -10 -10 -10 -9 -8 -8 -8 -8 -7 -7 -6 -6 -6 -5 -5 -5 -4 -4 -3 -3 -2 ------- Run | Yrd Mat Min Exi Min Mat Gar Mat Gar Fac Gar Fac Low Low Fac Upp Upp Fac Gar Res DSF Res Combat Hostiles Destroyed 100 | . 5 2 . 2 16 . 15 14 1 3 . . 1 10 19 4 . 2 3 . 3 Melee 1 | . . . . . . . . . . . . . . . . . . 1 . . . Guns 42 | . 5 2 . . 5 . 9 4 1 3 . . 1 5 . 4 . . 3 . . Cannons 11 | . . . . . . . . . . . . . . 4 4 . . . . . 3 AOE 42 | . . . . 2 11 . 5 10 . . . . . 1 13 . . . . . . Classes Destroyed 17 | 1 2 2 . . 5 . . 2 . 1 . . . 3 1 . . . . . . Worker 11 | . . 1 . . 2 . 3 . 1 . 1 . . 1 . . . . . . 2 Builder 2 | . . . . . . . . . . . . . . 2 . . . . . . . Tunneler 3 | 1 . . . 1 . . 1 . . . . . . . . . . . . . . Hauler 5 | . . . . . 3 . 1 . . . 1 . . . . . . . . . . Recycler 7 | . . 1 . . . . 3 . 2 . 1 . . . . . . . . . . Mechanic 1 | . . . . . 1 . . . . . . . . . . . . . . . . Operator 1 | . . . . . . . . . . . . . . 1 . . . . . . . Watcher 5 | . . . . . 2 . 3 . . . . . . . . . . . . . . Swarmer 29 | . 3 . . 2 3 . 3 4 . . . . . 5 5 4 . . . . . Grunt 40 | . 2 2 . . 9 . 9 7 . . . . . . 7 . . 2 2 . . Brawler 1 | . . . . . . . . 1 . . . . . . . . . . . . . Sentry 11 | . . . . . 3 . 3 1 1 . . . . . 2 . . . 1 . . Specialist 1 | . . . . . . . . . . 1 . . . . . . . . . . . Hunter 3 | . . . . . 1 . . . . . . . 1 . . . . . . . 1 Programmer 9 | . . . . . . . . 1 . 2 . . . 4 . . . . . . 2 Behemoth 2 | . . . . . . . . . . . . . . 1 1 . . . . . . Decomposer 1 | . . . . . . . . . . . . . . . 1 . . . . . . Samaritan 2 | . . . . . . . . . . . . . . . 2 . . . . . . Thug 4 | . . . . . . . . . . . . . . . 4 . . . . . . Best Kill Streak 11 | 1 5 2 . 2 5 . 11 9 3 1 1 . 1 5 8 4 . 1 3 . 2 Combat Bots Only 9 | . 5 2 . 2 4 . 5 9 1 1 . . 1 5 8 4 . 1 3 . 1 Max Kills in Single Turn 3 | 1 1 1 . 2 3 . 2 3 1 1 1 . 1 1 3 1 . 1 1 . 1 Gunslinging . | . . . . . . . . . . . . . . . . . . . . . . Exploded 3 | . . . . 2 3 . 2 2 . . . . . 1 3 . . . . . . Melee 1 | . . . . . . . . . . . . . . . . . . 1 . . . Uniques/NPCs Destroyed . | . . . . . . . . . . . . . . . . . . . . . . Combat | -11 -10 -10 -10 -9 -8 -8 -8 -8 -7 -7 -6 -6 -6 -5 -5 -5 -4 -4 -3 -3 -2 -------- Run | Yrd Mat Min Exi Min Mat Gar Mat Gar Fac Gar Fac Low Low Fac Upp Upp Fac Gar Res DSF Res Hostile Shots Fired 900 | . 33 3 . . 43 . 90 29 36 12 . 18 1 88 106 44 2 65 52 12 266 Missed 314 | . 9 1 . . 13 . 30 12 9 2 . 9 . 30 38 15 . 20 25 3 98 Damage Taken 10928 | . 237 31 . . 639 . 883 311 204 181 . 74 13 1239 1401 455 24 425 503 423 3885 Core 2579 | . 37 31 . . 98 . 174 41 82 16 . . . 102 236 79 . 93 70 70 1450 Absorbed by Shields 468 | . . . . . . . . . . . . . . . . . 25 151 84 135 73 Redirected to Shielding 94 | . . . . . . . 6 88 . . . . . . . . . . . . . Ignored by Resistances 10 | . . . . . 6 . 4 . . . . . . . . . . . . . . Regen/Repaired (Parts) 183 | . . . . . 78 . . . . . . . . . . . . . . . 105 Core Remaining (%) 79 | 100 . . . 72 . . . 43 . 86 . . 100 . . 58 . 91 . 89 . Volleys Fired 469 | 1 20 7 . 20 53 5 34 37 15 18 12 3 3 78 67 16 8 5 24 . 43 Largest 3 | 2 2 2 . 2 3 1 3 3 2 3 3 3 3 3 2 3 1 2 2 . 1 Hottest 200 | 70 70 70 . 100 156 5 146 146 130 160 160 160 160 168 147 200 5 130 130 . 65 Shots Fired 756 | 2 40 14 . 22 89 5 84 64 27 50 36 5 9 130 70 18 8 7 33 . 43 Gun 459 | 2 40 14 . 4 60 . 77 49 24 50 36 4 9 44 . 17 . 4 18 . 7 Cannon 118 | . . . . . . . . . . . . . . 49 43 1 . . . . 25 Launcher 90 | . . . . 4 29 . 7 15 . . . . . 18 17 . . . . . . Special 89 | . . . . 14 . 5 . . 3 . . 1 . 19 10 . 8 3 15 . 11 Kinetic 178 | 1 20 7 . 2 3 . 26 2 . 16 12 2 3 47 3 9 . . . . 25 Thermal 403 | 1 20 7 . 16 47 . 51 47 24 34 24 2 6 46 40 9 . 4 18 . 7 Explosive 14 | . . . . 4 2 . . . . . . . . . 8 . . . . . . Electromagnetic 86 | . . . . . 37 . 7 15 . . . . . 18 9 . . . . . . Robot Hit Streak 28 | 1 7 11 . 6 16 6 14 11 16 24 28 5 3 16 6 7 5 7 12 . 9 Robot Miss Streak 5 | . 3 1 . . 3 1 2 2 5 1 2 1 2 5 3 3 2 . 1 . 5 Penetration Max 1 | . . . . . . . . . . . . . . 1 . . . . . . . Secondary Targets 2 | . . . . . . . 1 . . . . . . . . . . . 1 . . Max Gunslinging Chain 1 | . . . . . . . 1 . . . . . . . . . . . 1 . . Capacitor 70 | . . . . . . . . . . . . . . 18 38 7 . . . . 7 Shots Hit Robots 472 | 1 29 10 . 3 47 4 51 27 17 54 28 3 4 76 37 13 5 6 26 . 31 Core Hits 237 | 1 11 8 . 5 37 . 38 24 6 12 8 1 2 23 38 4 . 1 7 . 11 Critical Kills 3 | . . . . . . . . . . . . . . 1 1 . . 1 . . . Critical Parts Destroyed 4 | . 1 . . . . . . . . . . . . 1 . 1 . 1 . . . Critical Strikes 31 | . 4 . . . 6 . 4 1 2 3 2 . . 5 1 1 . 2 . . . Burn 24 | . 3 . . . 6 . 4 1 2 3 2 . . 3 . . . . . . . Meltdown 1 | . . . . . . . . . . . . . . . 1 . . . . . . Destroy 4 | . 1 . . . . . . . . . . . . 2 . 1 . . . . . Smash 2 | . . . . . . . . . . . . . . . . . . 2 . . . Melee Attacks 159 | . . . . . 4 38 . 15 . 52 . . . 7 . . 1 42 . . . Impact 155 | . . . . . . 38 . 15 . 52 . . . 7 . . 1 42 . . . Slashing 4 | . . . . . 4 . . . . . . . . . . . . . . . . Piercing . | . . . . . . . . . . . . . . . . . . . . . . Sneak Attacks 1 | . . . . . 1 . . . . . . . . . . . . . . . . Combat Hostiles . | . . . . . . . . . . . . . . . . . . . . . . Follow-up Attacks . | . . . . . . . . . . . . . . . . . . . . . . Damage Inflicted 15619 | 12 312 108 . 141 1857 . 1480 1164 267 2280 566 46 75 2079 3182 282 . 177 492 . 1099 Guns 6341 | 12 309 108 . 32 795 . 997 494 267 909 566 46 75 717 . 282 . . 492 . 240 Cannons 2463 | . . . . . . . . . . . . . . 840 812 . . . . . 811 Explosions 5150 | . . . . 109 996 . 483 670 . . . . . 522 2370 . . . . . . Melee 1614 | . . . . . 66 . . . . 1371 . . . . . . . 177 . . . Ramming 51 | . 3 . . . . . . . . . . . . . . . . . . . 48 Kinetic 2867 | . 120 31 . 6 49 . 328 42 . 284 212 24 35 776 . 149 . . . . 811 Thermal 6393 | 12 189 77 . 26 639 . 715 630 267 625 354 22 40 844 1088 133 . . 492 . 240 Explosive 1941 | . . . . 109 173 . . . . . . . . 220 1439 . . . . . . Electromagnetic 2753 | . . . . . 930 . 437 492 . . . . . 239 655 . . . . . . Impact 1548 | . . . . . . . . . . 1371 . . . . . . . 177 . . . Slashing 66 | . . . . . 66 . . . . . . . . . . . . . . . . Piercing . | . . . . . . . . . . . . . . . . . . . . . . Highest Corruption 14 | . . . . . 3 3 4 4 . 2 . . . 4 4 4 . . . 1 14 Average Corruption 3 | . . . . . 1 3 3 4 . 1 . . . 3 4 4 . . . 1 7 Corruption Purged . | . . . . . . . . . . . . . . . . . . . . . . Corruption Blocked 1 | . . . . . . . . . . 1 . . . . . . . . . . . Effects 112 | . . . . . 3 8 7 19 . 11 . . . 19 36 1 . . . . 8 Message Errors 27 | . . . . . . 2 4 5 . 3 . . . 2 9 . . . . . 2 Matter Fused 23 | . . . . . 1 3 1 3 . 2 . . . 8 3 1 . . . . 1 Heat Flow Errors 5 | . . . . . 1 . . . . 1 . . . 1 2 . . . . . . Energy Discharges 20 | . . . . . 1 2 . 4 . 2 . . . 3 7 . . . . . 1 Parts Rejected 2 | . . . . . . . 1 . . . . . . . . . . . . . 1 Data Loss (minor) 16 | . . . . . . 1 . 2 . . . . . 3 9 . . . . . 1 Data Loss (major) 6 | . . . . . . . 1 3 . . . . . 1 1 . . . . . . Misfires 2 | . . . . . . . . . . . . . . . 2 . . . . . . Alerts 6 | . . . . . . . . 2 . 2 . . . . 2 . . . . . . Misdirections 2 | . . . . . . . . . . . . . . . . . . . . . 2 Weapon Failures 3 | . . . . . . . . . . 1 . . . 1 1 . . . . . . Overload Shots . | . . . . . . . . . . . . . . . . . . . . . . Overflow Damage 727 | . . . . . 26 . 4 2 . 348 . . . 94 160 . . 52 . . 41 Projectiles 170 | . . . . . . . . . . . . . . 56 73 . . . . . 41 Explosions 131 | . . . . . . . 4 2 . . . . . 38 87 . . . . . . Melee 426 | . . . . . 26 . . . . 348 . . . . . . . 52 . . . Knockbacks 17 | . . . . . . . . . . 2 . . . 2 . . . 2 . . 11 Impact 4 | . . . . . . . . . . 2 . . . . . . . 2 . . . Kinetic 11 | . . . . . . . . . . . . . . 2 . . . . . . 9 Secondary 2 | . . . . . . . . . . . . . . . . . . . . . 2 Self-Inflicted Damage 405 | . . . . . 155 . 22 81 . . . . . 52 74 . . . . . 21 Shots 17 | . . . . . 7 . 1 6 . . . . . 1 2 . . . . . . Rammed 18 | . 2 . . . . . . . . . . . . . . . . . . . 16 Targets Rammed 18 | . 2 . . . . . . . . . . . . . . . . . . . 16 Kicked . | . . . . . . . . . . . . . . . . . . . . . . Crushed . | . . . . . . . . . . . . . . . . . . . . . . Highest Temperature 484 | 20 70 40 . 200 282 . 221 207 . 484 72 42 48 449 406 306 . . 36 . 350 Average Temperature 102 | 15 21 17 . 86 106 . 78 88 . 146 24 28 21 115 127 140 . . 15 . 160 Received Heat Transfer 2628 | . 75 18 . . 153 . 522 117 60 18 . 24 . 57 647 . 13 101 161 . 662 Effects 11 | . . . . . . . . . . 4 . . . 4 3 . . . . . . Shutdowns 2 | . . . . . . . . . . 1 . . . . 1 . . . . . . Energy Bleed 4 | . . . . . . . . . . 2 . . . 1 1 . . . . . . Interference 4 | . . . . . . . . . . . . . . 3 1 . . . . . . Matter Decay 1 | . . . . . . . . . . 1 . . . . . . . . . . . Siege Activations . | . . . . . . . . . . . . . . . . . . . . . . Robots Corrupted 2 | . . . . . . . 1 . . . . . . . 1 . . . . . . Combat Hostiles 2 | . . . . . . . 1 . . . . . . . 1 . . . . . . Parts Fried 19 | . . . . . 1 . 3 . . 8 . . . 1 4 . . 2 . . . Impact Corruptions 11 | . . . . . . . . . . 9 . . . . . . . 2 . . . Robots Melted 3 | . . . . . 1 . . 1 . . . . . . 1 . . . . . . Combat Hostiles 1 | . . . . . . . . . . . . . . . 1 . . . . . . Parts Melted 27 | . 1 . . . 5 . 4 3 4 3 1 . . 1 2 . . . 2 . 1 Heat Transferred 12022 | 37 777 222 . 74 1839 . 1654 1088 666 1258 814 37 74 1416 1030 185 . . 592 . 259 Parts Sabotaged . | . . . . . . . . . . . . . . . . . . . . . . Parts Stolen . | . . . . . . . . . . . . . . . . . . . . . . Parts Stripped . | . . . . . . . . . . . . . . . . . . . . . . Power Chain Reactions 14 | . . . . . 5 . 3 3 . . . . . . 3 . . . . . . Alert | -11 -10 -10 -10 -9 -8 -8 -8 -8 -7 -7 -6 -6 -6 -5 -5 -5 -4 -4 -3 -3 -2 ------- Run | Yrd Mat Min Exi Min Mat Gar Mat Gar Fac Gar Fac Low Low Fac Upp Upp Fac Gar Res DSF Res Peak Influence 1045 | 5 224 177 . 116 397 340 406 822 483 1045 642 . . 390 . . 132 201 139 57 89 Initial 548 | . 3 87 . . 44 158 165 250 431 338 548 . . 236 . . 93 . 112 57 29 Average 280 | 2 108 146 . 21 261 284 257 595 444 634 574 . . 270 . . 109 101 102 50 44 Maximum Alert Level 3 | . 1 . . . 1 1 2 3 2 3 2 . . 1 . . . 1 . . . Low Security (%) 43 | 100 66 100 . 100 27 5 24 . . . . . . 16 . . 100 94 100 100 100 Level 1 34 | . 33 . . . 72 94 72 21 . 10 . . . 83 . . . 5 . . . Level 2 15 | . . . . . . . 3 39 100 56 100 . . . . . . . . . . Level 3 6 | . . . . . . . . 38 . 32 . . . . . . . . . . . Level 4 . | . . . . . . . . . . . . . . . . . . . . . . Level 5 . | . . . . . . . . . . . . . . . . . . . . . . High Security . | . . . . . . . . . . . . . . . . . . . . . . Max Security . | . . . . . . . . . . . . . . . . . . . . . . Squads Dispatched 27 | . 1 . . . 6 . 5 . 1 . 2 . . 5 . . . . 3 1 3 Investigation 5 | . . . . . 4 . . . . . . . . . . . . . 1 . . Extermination 6 | . . . . . . . . . . . 1 . . 3 . . . . 1 . 1 Reinforcement 12 | . 1 . . . 2 . 3 . . . 1 . . 1 . . . . 1 1 2 Assault 1 | . . . . . . . . . . . . . . 1 . . . . . . . Garrison 3 | . . . . . . . 2 . 1 . . . . . . . . . . . . Intercept . | . . . . . . . . . . . . . . . . . . . . . . Searches Triggered . | . . . . . . . . . . . . . . . . . . . . . . Construction Impeded 2 | . . . . . . . 2 . . . . . . . . . . . . . . Haulers Reinforced 1 | . . . . . . . . . . . . . . 1 . . . . . . . Active Scanning Responses . | . . . . . . . . . . . . . . . . . . . . . . Cargo Convoy Interrupts . | . . . . . . . . . . . . . . . . . . . . . . Stealth | -11 -10 -10 -10 -9 -8 -8 -8 -8 -7 -7 -6 -6 -6 -5 -5 -5 -4 -4 -3 -3 -2 --------- Run | Yrd Mat Min Exi Min Mat Gar Mat Gar Fac Gar Fac Low Low Fac Upp Upp Fac Gar Res DSF Res Distress Signals 14 | . . . . . 3 . 5 . . . . . . . . . 1 . . . 5 Communications Jammed 102 | . . . . . . . . . . . 6 . . . . . . . 5 . 91 Distress Signals 102 | . . . . . . . . . . . 6 . . . . . . . 5 . 91 Times Spotted 179 | . 11 3 . 3 25 . 29 15 2 5 2 4 1 14 25 4 2 5 4 3 22 Peak Tracking Total 11 | . 3 2 . 3 4 . 10 5 2 2 2 3 1 5 11 4 1 2 4 3 11 Tactical Retreats 21 | . 3 1 . . 2 . 1 . . . . . . 3 8 . . 2 . 1 . Traps | -11 -10 -10 -10 -9 -8 -8 -8 -8 -7 -7 -6 -6 -6 -5 -5 -5 -4 -4 -3 -3 -2 ------- Run | Yrd Mat Min Exi Min Mat Gar Mat Gar Fac Gar Fac Low Low Fac Upp Upp Fac Gar Res DSF Res Traps Triggered 18 | . . . . . 5 . . 4 . 2 . . . 3 . . 1 2 . 1 . Indirectly 4 | . . . . . 2 . . . . . . . . 2 . . . . . . . Trap Hack Attempts . | . . . . . . . . . . . . . . . . . . . . . . Triggered . | . . . . . . . . . . . . . . . . . . . . . . Disarmed . | . . . . . . . . . . . . . . . . . . . . . . Reprogrammed . | . . . . . . . . . . . . . . . . . . . . . . Reused . | . . . . . . . . . . . . . . . . . . . . . . Traps Extracted . | . . . . . . . . . . . . . . . . . . . . . . Installed . | . . . . . . . . . . . . . . . . . . . . . . Triggered . | . . . . . . . . . . . . . . . . . . . . . . Machines | -11 -10 -10 -10 -9 -8 -8 -8 -8 -7 -7 -6 -6 -6 -5 -5 -5 -4 -4 -3 -3 -2 ---------- Run | Yrd Mat Min Exi Min Mat Gar Mat Gar Fac Gar Fac Low Low Fac Upp Upp Fac Gar Res DSF Res Machines Disabled 39 | . . . . . 4 1 . 6 . 3 1 . . 14 8 . . 1 . . 1 Max in Single Turn 6 | . . . . . 1 1 . 1 . 1 1 . . 6 4 . . 1 . . 1 Garrison Access 1 | . . . . . . . . . . . . . . 1 . . . . . . . Garrison Relay 8 | . . . . . . 1 . 3 . 3 . . . . . . . 1 . . . Machines Repaired . | . . . . . . . . . . . . . . . . . . . . . . Machines Dismantled . | . . . . . . . . . . . . . . . . . . . . . . Machines Sabotaged . | . . . . . . . . . . . . . . . . . . . . . . Overloaded Fab Kills . | . . . . . . . . . . . . . . . . . . . . . . Hacking | -11 -10 -10 -10 -9 -8 -8 -8 -8 -7 -7 -6 -6 -6 -5 -5 -5 -4 -4 -3 -3 -2 --------- Run | Yrd Mat Min Exi Min Mat Gar Mat Gar Fac Gar Fac Low Low Fac Upp Upp Fac Gar Res DSF Res Machines Accessed 37 | . 1 . 1 . 6 . 4 2 1 1 . . . 7 . . 4 1 3 . 6 Terminals 22 | . 1 . . . 4 . 3 2 . 1 . . . 3 . . 1 1 3 . 3 Fabricators 3 | . . . . . . . . . . . . . . 2 . . 1 . . . . Repair Stations 2 | . . . . . 1 . . . . . . . . . . . . . . . 1 Recycling Units 3 | . . . . . . . . . . . . . . 2 . . . . . . 1 Scanalyzers 2 | . . . . . . . . . . . . . . . . . 1 . . . 1 Garrison Access 4 | . . . . . 1 . 1 . 1 . . . . . . . 1 . . . . Total Hacks 91 | . 3 . 1 . 16 . 12 3 2 2 . . . 14 . . 14 2 8 . 14 Successful 39 | . 1 . 1 . 6 . 6 2 1 1 . . . 5 . . 6 1 2 . 7 Failed 52 | . 2 . . . 10 . 6 1 1 1 . . . 9 . . 8 1 6 . 7 Catastrophic 17 | . . . . . 4 . 3 . . 1 . . . 4 . . 1 . 1 . 3 Database Lockouts . | . . . . . . . . . . . . . . . . . . . . . . Manual 35 | . 3 . 1 . 2 . 8 . 1 . . . . 6 . . 5 1 1 . 7 Terminals 60 | . 3 . . . 11 . 10 3 . 2 . . . 6 . . 7 2 8 . 8 Fabricators 4 | . . . . . . . . . . . . . . 2 . . 2 . . . . Repair Stations 5 | . . . . . 3 . . . . . . . . . . . . . . . 2 Recycling Units 7 | . . . . . . . . . . . . . . 6 . . . . . . 1 Scanalyzers 6 | . . . . . . . . . . . . . . . . . 3 . . . 3 Garrison Access 8 | . . . . . 2 . 2 . 2 . . . . . . . 2 . . . . Terminal Hacks 21 | . 1 . 1 . 3 . 4 2 . 1 . . . 1 . . 3 1 2 . 2 Record 1 | . . . . . . . . . . . . . . . . . 1 . . . . Part Schematic 1 | . . . . . . . 1 . . . . . . . . . . . . . . Robot Analysis 1 | . 1 . . . . . . . . . . . . . . . . . . . . Open DSF 2 | . . . . . . . . . . . . . . . . . . . 1 . 1 Branch Access Points 1 | . . . . . . . 1 . . . . . . . . . . . . . . Emergency Access Points 2 | . . . . . 1 . . . . . . . . . . . . 1 . . . Terminal Index 4 | . . . . . . . 1 . . . . . . 1 . . 1 . . . 1 Scanalyzer Index 1 | . . . . . . . . . . . . . . . . . 1 . . . . Alert Level 1 | . . . . . 1 . . . . . . . . . . . . . . . . Registered Components 2 | . . . . . 1 . . . . . . . . . . . . . 1 . . Zone Layout 1 | . . . . . . . 1 . . . . . . . . . . . . . . Garrison Registry 2 | . . . . . . . . 1 . 1 . . . . . . . . . . . Security Stations 1 | . . . . . . . . 1 . . . . . . . . . . . . . Derelict Proto ID Bank 1 | . . . 1 . . . . . . . . . . . . . . . . . . Fabricator Hacks 2 | . . . . . . . . . . . . . . 1 . . 1 . . . . Network Status 2 | . . . . . . . . . . . . . . 1 . . 1 . . . . Repair Station Hacks 4 | . . . . . 2 . . . . . . . . . . . . . . . 2 Scan Component 2 | . . . . . 1 . . . . . . . . . . . . . . . 1 Repair 2 | . . . . . 1 . . . . . . . . . . . . . . . 1 Recycling Unit Hacks 3 | . . . . . . . . . . . . . . 3 . . . . . . . Process 1 | . . . . . . . . . . . . . . 1 . . . . . . . Report Inventory 1 | . . . . . . . . . . . . . . 1 . . . . . . . Retrieve Matter 1 | . . . . . . . . . . . . . . 1 . . . . . . . Scanalyzer 3 | . . . . . . . . . . . . . . . . . 1 . . . 2 Insert Component 2 | . . . . . . . . . . . . . . . . . 1 . . . 1 Analyze 1 | . . . . . . . . . . . . . . . . . . . . . 1 Garrison Access Hacks 4 | . . . . . 1 . 1 . 1 . . . . . . . 1 . . . . Unlock Access 4 | . . . . . 1 . 1 . 1 . . . . . . . 1 . . . . Unauthorized Hacks 2 | . . . . . . . 1 . . . . . . . . . . . . . 1 Terminals 2 | . . . . . . . 1 . . . . . . . . . . . . . 1 Assimilate 2 | . . . . . . . 1 . . . . . . . . . . . . . 1 Fabricators . | . . . . . . . . . . . . . . . . . . . . . . Repair Stations . | . . . . . . . . . . . . . . . . . . . . . . Recycling Units . | . . . . . . . . . . . . . . . . . . . . . . Scanalyzers . | . . . . . . . . . . . . . . . . . . . . . . Garrison Access . | . . . . . . . . . . . . . . . . . . . . . . Data Cores Recovered 1 | . . . . . . . 1 . . . . . . . . . . . . . . Used . | . . . . . . . . . . . . . . . . . . . . . . Hacking Detections 31 | . 1 . . . 5 . 4 2 1 1 . . . 6 . . 3 1 2 . 5 Full Trace Events 5 | . . . . . 3 . . . . 1 . . . . . . . . 1 . . Feedback Events . | . . . . . . . . . . . . . . . . . . . . . . Feedback Blocked 1 | . . . . . . . . . . . . . . . . . . . 1 . . Robot Schematics Acquired . | . . . . . . . . . . . . . . . . . . . . . . Robots Built . | . . . . . . . . . . . . . . . . . . . . . . Authchips . | . . . . . . . . . . . . . . . . . . . . . . Time . | . . . . . . . . . . . . . . . . . . . . . . Total Robot Build Rating . | . . . . . . . . . . . . . . . . . . . . . . Part Schematics Acquired 2 | . . . . . . . 1 . . . . . . . . . . . . . 1 Parts Built . | . . . . . . . . . . . . . . . . . . . . . . Authchips . | . . . . . . . . . . . . . . . . . . . . . . Time . | . . . . . . . . . . . . . . . . . . . . . . Total Part Build Rating . | . . . . . . . . . . . . . . . . . . . . . . Parts Repaired 2 | . . . . . 1 . . . . . . . . . . . . . . . 1 Time 91 | . . . . . 60 . . . . . . . . . . . . . . . 31 Parts Recycled . | . . . . . . . . . . . . . . . . . . . . . . Recycled Matter 202 | . . . . . . . . . . . . . . 202 . . . . . . . Retrieved Matter 202 | . . . . . . . . . . . . . . 202 . . . . . . . Retrieved Components . | . . . . . . . . . . . . . . . . . . . . . . Parts Scanalyzed 2 | . . . . . . . . . . . . . . . . . 1 . . . 1 Part Schematics Acquired 1 | . . . . . . . . . . . . . . . . . . . . . 1 Parts Damaged 1 | . . . . . . . . . . . . . . . . . 1 . . . . Bothacking | -11 -10 -10 -10 -9 -8 -8 -8 -8 -7 -7 -6 -6 -6 -5 -5 -5 -4 -4 -3 -3 -2 ------------ Run | Yrd Mat Min Exi Min Mat Gar Mat Gar Fac Gar Fac Low Low Fac Upp Upp Fac Gar Res DSF Res Used RIF Installer 4 | . . . . . . 1 . 1 . 1 . . . . . . . 1 . . . Hotswap 1 | . . . . . . . . 1 . . . . . . . . . . . . . Signal Jammer 1 | . . . . . . . . . . 1 . . . . . . . . . . . Alert ID Control 1 | . . . . . . . . . . . . . . . . . . 1 . . . Robots Hacked 29 | . . . . . . . . . . . . . . 7 5 . 4 . 7 . 6 Non-combat 19 | . . . . . . . . . . . . . . 7 1 . 3 . 4 . 4 Combat 10 | . . . . . . . . . . . . . . . 4 . 1 . 3 . 2 Robot Hacks Applied 41 | . . . . . . . . . . . . . . 13 5 . 4 . 11 . 8 parse_system 1 | . . . . . . . . . . . . . . . 1 . . . . . . no_distress 1 | . . . . . . . . . . . . . . . . . . . 1 . . deconstruct_machine 1 | . . . . . . . . . . . . . . . . . . . 1 . . hold_bot 1 | . . . . . . . . . . . . . . . . . . . . . 1 ignore_repairs 1 | . . . . . . . . . . . . . . 1 . . . . . . . map_earth 1 | . . . . . . . . . . . . . . . . . 1 . . . . find_fabricator 1 | . . . . . . . . . . . . . . 1 . . . . . . . find_dsf 1 | . . . . . . . . . . . . . . 1 . . . . . . . drop_inventory 2 | . . . . . . . . . . . . . . 1 . . 1 . . . . find_recycling 4 | . . . . . . . . . . . . . . 3 . . . . 1 . . ignore_parts 7 | . . . . . . . . . . . . . . 3 . . . . 2 . 2 check_alert 1 | . . . . . . . . . . . . . . . . . . . 1 . . reprogram_traps 1 | . . . . . . . . . . . . . . . . . . . 1 . . block_reporting 1 | . . . . . . . . . . . . . . . . . . . 1 . . relay_feed 1 | . . . . . . . . . . . . . . . . . 1 . . . . find_garrison 1 | . . . . . . . . . . . . . . . . . . . . . 1 link_fov 1 | . . . . . . . . . . . . . . 1 . . . . . . . scatter_targeting 4 | . . . . . . . . . . . . . . . 2 . . . 1 . 1 disrupt_area 4 | . . . . . . . . . . . . . . . . . . . 2 . 2 overload_power 1 | . . . . . . . . . . . . . . 1 . . . . . . . amplify_resonance 1 | . . . . . . . . . . . . . . . 1 . . . . . . disable_weapons 1 | . . . . . . . . . . . . . . . . . 1 . . . . formatsys_low 1 | . . . . . . . . . . . . . . . . . . . . . 1 formatsys_high 2 | . . . . . . . . . . . . . . 1 1 . . . . . . Relay Couplers Released 33 | . . . . . . 4 . 13 . 12 . . . 1 . . . 3 . . . Machine Destruction 29 | . . . . . . 4 . 9 . 12 . . . 1 . . . 3 . . . Programmers 4 | . . . . . . . . 4 . . . . . . . . . . . . . Attached 12 | . . . . . . . . 2 . 4 . . . . . 5 . 1 . . . Fabnet Peak Effective % . | . . . . . . . . . . . . . . . . . . . . . . Robots Rewired 8 | . . . . . . 3 . . 1 . . 1 . . . . 1 2 . . . Allies Hacked 1 | . . . . . . . . . . . . . . . . . . . . . 1 Hacks Repelled . | . . . . . . . . . . . . . . . . . . . . . . Allies | -11 -10 -10 -10 -9 -8 -8 -8 -8 -7 -7 -6 -6 -6 -5 -5 -5 -4 -4 -3 -3 -2 -------- Run | Yrd Mat Min Exi Min Mat Gar Mat Gar Fac Gar Fac Low Low Fac Upp Upp Fac Gar Res DSF Res Total Allies 18 | . . 3 . . . 3 1 . 1 2 . 1 . 1 1 . 1 2 . . 2 Largest Group 3 | . . 3 3 3 3 3 3 . 1 2 2 2 1 1 1 . 1 1 . . 2 Highest-Rated Group 157 | . . 40 40 40 40 26 31 . 16 157 157 96 84 84 49 . 49 148 . . 68 Highest-Rated Ally 148 | . . 16 16 16 16 16 16 . 16 95 95 89 84 84 49 . 49 148 . . 45 Total Orders 7 | . . . 2 . . . . . . . . . . 5 . . . . . . . STAY 1 | . . . 1 . . . . . . . . . . . . . . . . . . FOLLOW 1 | . . . 1 . . . . . . . . . . . . . . . . . . EXPLORE 3 | . . . . . . . . . . . . . . 3 . . . . . . . RETURN 2 | . . . . . . . . . . . . . . 2 . . . . . . . Ally Attacks 140 | . . . . 3 31 . 27 . 9 16 12 7 4 6 5 . 4 16 . . . Total Damage 2330 | . . . . 31 303 . 178 . 28 301 265 264 28 138 174 . 76 544 . . . Kills 11 | . . . . 2 . . 1 . . 3 3 2 . . . . . . . . . Allies Corrupted 1 | . . . . . . . . . . . . . . 1 . . . . . . . Allies Melted 1 | . . . . . . . . . . 1 . . . . . . . . . . . Intel | -11 -10 -10 -10 -9 -8 -8 -8 -8 -7 -7 -6 -6 -6 -5 -5 -5 -4 -4 -3 -3 -2 ------- Run | Yrd Mat Min Exi Min Mat Gar Mat Gar Fac Gar Fac Low Low Fac Upp Upp Fac Gar Res DSF Res Robot Analysis Total 1 | . 1 . . . . . . . . . . . . . . . . . . . . Derelict Logs Recovered 1 | . . . . 1 . . . . . . . . . . . . . . . . . Drone Launches 4 | . . . . . . . . . . . . . . 4 . . . . . . . Drone Recoveries 2 | . . . . . . . . . . . . . . 2 . . . . . . . Exploration | -11 -10 -10 -10 -9 -8 -8 -8 -8 -7 -7 -6 -6 -6 -5 -5 -5 -4 -4 -3 -3 -2 ------------- Run | Yrd Mat Min Exi Min Mat Gar Mat Gar Fac Gar Fac Low Low Fac Upp Upp Fac Gar Res DSF Res Turns Passed 11714 | 59 238 148 383 345 875 430 520 691 171 1129 316 229 44 1686 1638 82 405 962 569 95 699 Spaces Moved 6588 | 58 120 89 340 169 455 257 338 356 99 600 192 202 31 891 616 41 387 538 241 64 504 Core 56 | 1 . . . . . . . . . . . . . . 8 37 10 . . . . Treads 12 | . . . . . 1 . . 11 . . . . . . . . . . . . . Legs 1412 | . . . . . . . . . . . . . . . 135 4 22 538 241 64 408 Wheels 4750 | 57 120 89 340 169 454 257 338 345 99 600 192 202 31 891 473 . 93 . . . . Hover 358 | . . . . . . . . . . . . . . . . . 262 . . . 96 Flight . | . . . . . . . . . . . . . . . . . . . . . . Fastest Speed 40 | 50 80 110 110 110 95 110 110 110 105 105 108 108 108 105 128 50 40 120 120 120 50 Average Speed 126 | 79 101 110 110 119 118 110 110 129 114 125 123 108 108 121 242 84 65 131 120 120 108 Slowest Speed 850 | 80 110 110 110 125 240 110 155 225 140 160 130 108 108 180 850 400 120 190 120 120 190 Overloaded Moves . | . . . . . . . . . . . . . . . . . . . . . . Propulsion Burnouts . | . . . . . . . . . . . . . . . . . . . . . . Robots Hopped . | . . . . . . . . . . . . . . . . . . . . . . Cave-ins Triggered 1 | . . . . . . . . . . . . . . . 1 . . . . . . Exploration Rate (%) 31 | 3 29 18 67 36 55 39 40 51 3 68 4 39 11 20 60 9 10 44 8 68 15 Regions Visited 21 Branch Regions 7 Pre-discovered Areas . | . . . . . . . . . . . . . . . . . . . . . . Known Exits Taken 5 | . . . . . 1 . 1 . 1 . . . . . . . 1 . 1 . . Unknown Exits Taken 11 | 1 1 1 1 1 . . . . . . 1 1 1 1 1 1 . . . . . Scrap Searched 6 | . . . . 2 . . . . . . . 2 1 . 1 . . . . . . Spaces Dug 126 | . . . . 35 3 27 . 11 . 21 . . . 5 5 . 1 18 . . . Terrain Destroyed 371 | . . . . 47 33 27 17 22 . 25 1 . 3 85 85 4 1 18 1 . 2 Melee 85 | . . . . . 2 27 . 11 . 21 . . . 5 . . 1 18 . . . Projectile 65 | . . . . 5 . . . . . 4 1 . 3 30 15 4 . . 1 . 2 AOE 221 | . . . . 42 31 . 17 11 . . . . . 50 70 . . . . . . Terrain Rammed . | . . . . . . . . . . . . . . . . . . . . . . Walls Destroyed . | . . . . . . . . . . . . . . . . . . . . . . Machines Disabled . | . . . . . . . . . . . . . . . . . . . . . . Actions | -11 -10 -10 -10 -9 -8 -8 -8 -8 -7 -7 -6 -6 -6 -5 -5 -5 -4 -4 -3 -3 -2 --------- Run | Yrd Mat Min Exi Min Mat Gar Mat Gar Fac Gar Fac Low Low Fac Upp Upp Fac Gar Res DSF Res Total 9113 | 65 197 126 353 261 711 335 427 502 129 852 244 208 34 1387 732 80 531 732 494 82 631 Wait 1374 | . 53 23 . 61 133 22 36 46 1 92 35 1 1 345 21 6 100 131 220 3 44 Move 6570 | 57 119 88 339 168 455 256 338 355 98 599 191 201 30 890 615 40 387 537 240 63 504 Hop . | . . . . . . . . . . . . . . . . . . . . . . Pick Up 110 | 1 . 8 8 7 14 4 1 12 2 15 . 1 . 9 5 2 5 1 1 10 4 Fast Attach 109 | 6 . . . . 12 . 3 3 5 14 2 . . 19 7 4 16 6 5 2 5 Attach 48 | . 1 . . 1 6 . 3 4 2 1 2 . . 5 8 3 1 1 1 . 9 Detach 9 | . . . . . 2 . 1 . . . 1 . . 1 2 2 . . . . . Swap 71 | . 1 . . 3 11 3 6 5 1 15 . 2 . 13 3 . 1 5 . 1 1 Drop 146 | . 1 . 6 1 21 3 5 10 4 30 1 . . 19 4 7 12 11 3 3 5 Fire 469 | 1 20 7 . 20 53 5 34 37 15 18 12 3 3 78 67 16 8 5 24 . 43 Melee 152 | . . . . . 4 38 . 15 . 52 . . . 7 . . 1 35 . . . Ram 16 | . . . . . . . . . . . . . . . . . . . . . 16 Kick . | . . . . . . . . . . . . . . . . . . . . . . Crush 2 | . 2 . . . . . . . . . . . . . . . . . . . . Escape Stasis 31 | . . . . . . . . 15 . 16 . . . . . . . . . . . Rewire 5 | . . . . . . 4 . . 1 . . . . . . . . . . . . Trap . | . . . . . . . . . . . . . . . . . . . . . . Miscellaneous 1 | . . . . . . . . . . . . . . 1 . . . . . . . Route ------- -11/Scrapyard -10/Materials -10/Mines -10/Exiles -9/Mines -8/Materials -8/Garrison -8/Materials (discovered 2 exits: Sto / Gar) -8/Garrison (discovered 3 exits: *Fac x3) -7/Factory -7/Garrison (discovered 3 exits: [*Fac x3]) -6/Factory -6/Lower Caves -6/Lower Caves -5/Factory -5/Upper Caves -5/Upper Caves -4/Factory -4/Garrison -3/Research -3/DSF -2/Research History --------- Turn | Location | Event 13 | -11/Scrapyard | Discovered new exit (range 15) 60 | -11/Scrapyard | Entered Materials 265 | -10/Materials | Discovered new exit (range 16) 298 | -10/Materials | Entered Mines 304 | -10/Mines | Build established: Mutant 419 | -10/Mines | Assisted by bots powering up and referring to "LRC-V3" 427 | -10/Mines | Deemed a non-threat by the Exiles lab entrance 428 | -10/Mines | Discovered new exit (range 5) 446 | -10/Mines | Entered Exiles 446 | -10/Exiles | Accompanied by 3 allies 473 | -10/Exiles | Met 8R-AWN 490 | -10/Exiles | Met EX-HEX 521 | -10/Exiles | Met EX-BIN 537 | -10/Exiles | Aligned with FarCom system 538 | -10/Exiles | Given EX-Vault access code 567 | -10/Exiles | Opened EX-Vault 574 | -10/Exiles | Found Superbattery 597 | -10/Exiles | Warned to stay clear of 0b10 Research branches 613 | -10/Exiles | Exiles lab attacked by MAIN.C 756 | -10/Exiles | Discovered new exit (range 14) 829 | -10/Exiles | Left Exiles lab with Superbattery 829 | -10/Exiles | Entered Mines 829 | -9/Mines | Accompanied by 3 allies 868 | -9/Mines | Met a Derelict bent on vengeance 1049 | -9/Mines | Learned Materials terminal intel 1077 | -9/Mines | Received a Rocket Launcher from a helpful Derelict 1153 | -9/Mines | Discovered new exit (range 8) 1156 | -9/Mines | Assembled infested the area 1174 | -9/Mines | Entered Materials 1174 | -8/Materials | Accompanied by 3 allies 1174 | -8/Materials | Evolved 4 slots: Power x1, Utility x2, Weapon x1 1175 | -8/Materials | Loaded intel: 11 terminal locations 1511 | -8/Materials | Build established: Scavenger-Skirmisher 1780 | -8/Materials | Repaired Adv. EMP Blaster 2049 | -8/Materials | Identified exit to Garrison 2049 | -8/Materials | Entered Garrison 2049 | -8/Garrison | Discovered recently destroyed garrison 2203 | -8/Garrison | Discovered new exit (range 7) 2223 | -8/Garrison | Installed Relay Interface Framework 2370 | -8/Garrison | Garrison Relay disabled 2479 | -8/Garrison | Entered Materials 2479 | -8/Materials | Accompanied by 3 allies 2523 | -8/Materials | Identified exit to Storage 2877 | -8/Materials | Garrison activated, responded to threat 2984 | -8/Materials | Garrison activated, responded to threat 2999 | -8/Materials | Identified exit to Garrison 2999 | -8/Materials | Entered Garrison 3044 | -8/Garrison | Garrison Relay disabled 3123 | -8/Garrison | Core integrity fell below 50% 3167 | -8/Garrison | Triggered checkpoint 3192 | -8/Garrison | Destroyed 9 combat bots 3193 | -8/Garrison | Garrison Relay disabled 3387 | -8/Garrison | Triggered checkpoint 3414 | -8/Garrison | Triggered checkpoint 3415 | -8/Garrison | Triggered checkpoint 3441 | -8/Garrison | Build established: Bothacker-Skirmisher 3532 | -8/Garrison | Discovered new exit (range 19) 3532 | -8/Garrison | Discovered new exit (range 49) 3532 | -8/Garrison | Discovered new exit (range 63) 3572 | -8/Garrison | Learned Factory security intel 3590 | -8/Garrison | Triggered checkpoint 3641 | -8/Garrison | Expanded RIF knowledge: Hotswap 3650 | -8/Garrison | Garrison Relay disabled 3690 | -8/Garrison | Entered Factory 3690 | -7/Factory | Evolved 2 slots: Utility x2 3709 | -7/Factory | Identified exit to Garrison 3825 | -7/Factory | Garrison activated, responded to threat 3861 | -7/Factory | Entered Garrison 3861 | -7/Garrison | Accompanied by 1 ally 3963 | -7/Garrison | Garrison Relay disabled 3973 | -7/Garrison | Triggered checkpoint 4015 | -7/Garrison | Warlord forces raided the area 4049 | -7/Garrison | Triggered checkpoint 4054 | -7/Garrison | Expanded RIF knowledge: Signal Jamming 4058 | -7/Garrison | Triggered checkpoint 4205 | -7/Garrison | Triggered checkpoint 4259 | -7/Garrison | Triggered checkpoint 4524 | -7/Garrison | Garrison Relay disabled 4588 | -7/Garrison | Discovered new exit (range 8) 4729 | -7/Garrison | Triggered checkpoint 4729 | -7/Garrison | Build established: Bothacker-Mutant 4753 | -7/Garrison | Garrison Relay disabled 4758 | -7/Garrison | Found embedded Infiltrators 4967 | -7/Garrison | Discovered new exit (range 66) 4967 | -7/Garrison | Discovered new exit (range 35) 4967 | -7/Garrison | Discovered new exit (range 12) 4990 | -7/Garrison | Entered Factory 4990 | -6/Factory | Accompanied by 2 allies 4990 | -6/Factory | Evolved 2 slots: Propulsion x1, Utility x1 5038 | -6/Factory | Discovered new exit (range 8) 5194 | -6/Factory | Build established: Bothacker-Skirmisher 5306 | -6/Factory | Entered Lower Caves 5306 | -6/Lower Caves | Accompanied by 1 ally 5409 | -6/Lower Caves | Attracted the attention of an 0b10 checkpoint 5525 | -6/Lower Caves | Discovered new exit (range 10) 5535 | -6/Lower Caves | Entered another Lower Caves area 5535 | -6/Lower Caves | Accompanied by 2 allies 5558 | -6/Lower Caves | Discovered new exit (range 16) 5579 | -6/Lower Caves | Entered Factory 5579 | -5/Factory | Accompanied by 1 ally 5579 | -5/Factory | Evolved 2 slots: Utility x2 5874 | -5/Factory | Spotted B-75 Beast 5918 | -5/Factory | Destroyed B-75 Beast 5946 | -5/Factory | Lost 3 parts (1n1u1w) 6427 | -5/Factory | Found Quantum Capacitor 7256 | -5/Factory | Discovered new exit (range 7) 7265 | -5/Factory | Entered Upper Caves 7267 | -5/Upper Caves | Ambushed by wild Derelicts 7479 | -5/Upper Caves | Attracted the attention of an 0b10 checkpoint 7564 | -5/Upper Caves | Build established: Bothacker-Gunner 7987 | -5/Upper Caves | Spotted B-75 Beast 8043 | -5/Upper Caves | Destroyed B-75 Beast 8251 | -5/Upper Caves | Attracted the attention of an 0b10 base 8284 | -5/Upper Caves | Destroyed 8 combat bots 8309 | -5/Upper Caves | Lost 7 parts (1p2n1u3w) 8349 | -5/Upper Caves | Crushed by falling debris 8548 | -5/Upper Caves | Build established: Bothacker-Mutant 8773 | -5/Upper Caves | Discovered new exit (range 7) 8903 | -5/Upper Caves | Entered another Upper Caves area 8936 | -5/Upper Caves | Build established: Bothacker-Gunner 8976 | -5/Upper Caves | Lost 3 parts (1n2u) 8977 | -5/Upper Caves | Discovered new exit (range 15) 8985 | -5/Upper Caves | Entered Factory 8985 | -4/Factory | Evolved 2 slots: Propulsion x1, Utility x1 9237 | -4/Factory | Build established: Bothacker-Mutant 9390 | -4/Factory | Identified exit to Garrison 9390 | -4/Factory | Entered Garrison 9404 | -4/Garrison | Spotted B-75 Beast 9420 | -4/Garrison | Spotted B-90 Cyclops 9449 | -4/Garrison | Rewired B-90 Cyclops 9465 | -4/Garrison | Rewired B-90 Cyclops 9566 | -4/Garrison | Triggered checkpoint 9688 | -4/Garrison | Garrison Relay disabled 10028 | -4/Garrison | Discovered new exit (range 7) 10088 | -4/Garrison | Expanded RIF knowledge: Alert ID Control 10134 | -4/Garrison | Triggered checkpoint 10352 | -4/Garrison | Entered Research 10352 | -3/Research | Evolved 2 slots: Utility x2 10535 | -3/Research | Build established: Botlord-Skirmisher 10920 | -3/Research | Identified exit to DSF 10921 | -3/Research | Entered DSF 10950 | -3/DSF | Additional patrols routed to DSF 10996 | -3/DSF | Discovered new exit (range 15) 11016 | -3/DSF | Entered Research 11016 | -2/Research | Evolved 2 slots: Utility x2 11043 | -2/Research | Found Quantum Capacitor 11488 | -2/Research | Build established: Bothacker-Skirmisher 11495 | -2/Research | Spotted B-90 Cyclops 11516 | -2/Research | Repaired Myomer Leg 11674 | -2/Research | Core integrity fell below 50% 11674 | -2/Research | System corruption reached 10% 11688 | -2/Research | Core integrity fell below 20% 11715 | -2/Research | Destroyed by P-80 Master with Gamma Rifle Last Messages --------------- 11691_ K-01 Serf collects debris. 11692_ Penetrated by Slug. 11692_ Relay Coupler [NC] destroyed. 11692_ C-57 Dissector destroyed. 11693_ K-01 Serf destroyed. 11693_ Acquired 39 matter. 11694_ Slug penetrates Wall. 11695_ Hacking Suite destroyed. 11695_ Critical hit (Burn: +37). 11695_ K-01 Serf collects debris. 11695_ Slug penetrates Engineering Station. 11695_ Slug penetrates Wall. 11698_ Penetrated by Slug. 11698_ U-05 Engineer builds a Wall. 11699_ Slug penetrates Wall. 11700_ O-24 Administrator: "IFF HANDSHAKE FAILED. SECURING TERMINAL." 11706_ E#Y,FL>BR# R>%ZWNZ6UHSJOSD5U#73NL F 11708_ Critical hit (Burn: +37). 11715_ Imp. Linear Gravjet destroyed. Map ----- +----------------------------------------------------+ | ?????????????????????????????????????????????????? | | ?????????????????????????????????????????????????? | | ?????????????????????????????????????????????????? | | ?????????????????????????????????????????????????? | | ?????????????????????????????????????????????????? | | ?????????????????????????????????????????????????? | | ?????????????????????????????????????????????????? | | ?????????????????????????????????????????????????? | | ??##############?????????????????????????????????? | | ??# #?????????????????????????????????? | | ??# #?????????????????????????????????? | | ??# #?????????????????????????????????? | | ??# #?????????????????????????????????? | | ??# #?????????????????????????????????? | | ??# #?????????????????????????????????? | | ??# #?????????????????????????????????? | | ??# #?????????????????????????????????? | | ??# #?????????????????????????????????? | | ??? #?????????????????????????????????? | | ????? ???????????????????????????????????? | | ??????? ?????????????????????????????????????? | | ########+##############+###############?????????? | | ?????????? | | w ????????? | | k ! ????????? | | p @ w k ????????? | | ####### ###/#########c### """?????????????? | | """ # # ????? ????? """?????????????? | | """ # #g #?? #?????????????????????? | | """ + g # #?????????????????????? | | # h# # #?????????????????????? | | # g # # #?????????????????????? | | ?# # # #?????????????????????? | | ?# # # #?????????????????????? | | ####??# # # #?????????????????????? | | ####### # ###########?????????????????????? | | # #??????Y????????????????????????? | | # #???????????????????????????????? | | # = #???????????????????????????????? | | #######???????????????????????????????? | | #/##########?????????????????????????????????????? | | #????????????????????????????????????????? | | #????????????????????????????????????????? | | #????????????????????????????????????????? | | #????????????????????????????????????????? | | """" #????????????????????????????????????????? | | """" #????????????????????????????????????????? | | """" ]#????????????????????????????????????????? | | """" #????????????????????????????????????????? | | #????????????????????????????????????????? | +----------------------------------------------------+ Best States ------------- Heat Dissipation 71 Energy Generation 45 Energy Capacity 2060 Matter Stores 316 Matter Capacity 700 Sight Range 22 Terrain Scan Density 10 ECM Strength 1 Base Temperature (-) 200 Armor Coverage 225 Resistance: KI 20 Resistance: EX 25 Weapon Shielding 66 Evasion (%) 57 Targeting Accuracy 8 Recoil Reduction 1 Salvage Targeting 3 Offensive Hacking 10 Defensive Hacking 14 Relay Coupler Types 4 Relay Coupler Value 169 Item Schematics ----------------- Adv. Beam Cannon | -8/Materials | Hacked Centrium Leg | -2/Research | Scanalyzed Robot Schematics ------------------ None Fabricated ------------ Nothing Alien Tech Used ----------------- None Achievements -------------- None Challenges ------------ None Game ------ Seed NullParticleExpander Manual? 0 Play Time 02:00:56 Cumulative 96.1 hours Start 2024.04.15 @ 18:35:08 End 2024.04.15 @ 20:47:22 Sessions 1 Manual Loads 0 Difficulty Rogue Special Mode None Game No. 108 Rogue 108 Adventurer 0 Explorer 0 Win Type - Total 1 Types 1/0/0/0/0/0/0/0/0 Lore% 45 Gallery% 67 Achievement% 50 Wizard Run 0 Options --------- Layout 1 ASCII 0 Keyboard 0 Movement Numpad Keybinds 0 Fullscreen 1 Font 24/Smallcaps Map View 50x35 Zoom Use 0% Tactical HUD 1 Map Filters NONE Filters NONE Steam 1 RUN: 6f4a0f5c-0aaa-4fe8-86f5-39b6e2a8a6e2